[Event "FRA-ch Youth 2017"]
[Site "Belfort"]
[Date "2017.04.19"]
[Round "5"]
[White "Chachiachvili, Mariam"]
[Black "Bartels, Karina"]
[Result "1/2-1/2"]
[ECO "B40"]
[WhiteElo "1742"]
[BlackElo "1759"]
[Annotator "NA"]
[PlyCount "104"]
[EventDate "2017.??.??"]
[EventCountry "FRA"]
[SourceTitle "playchess.com"]
[Source "ChessBase"]
[SourceQuality "1"]
[TimeControl "40/5400+30:1800+30"]

1. e4 {[%emt 0:00:00]} c5 {[%emt 0:00:12]} 2. Nf3 {[%emt 0:01:26]} e6 {[%emt 0:00:24]} 3. d4 {[%emt 0:00:33]} cxd4 {[%emt 0:00:03]} 4. Nxd4 {[%emt 0:00:02]} Nf6 {[%emt 0:00:19]} 5. Nc3 {[%emt 0:03:35]} d6 {[%emt 0:00:21]} 6. Be2 {[%emt 0:01:23]} Be7 {[%emt 0:01:21]} 7. O-O {[%emt 0:01:18]} O-O {[%emt 0:01:18]} 8. Be3 {[%emt 0:02:35]} Nc6 {[%emt 0:05:49]} 9. f4 {[%emt 0:02:25]} Bd7 {[%emt 0:00:06]} 10. Qe1 {[%emt 0:05:26]} e5 {[%emt 0:01:18] LiveBook: 5 Games B83: Sicilian Scheveningen: 6 Be2, lines without ...a6} 11. fxe5 {[%emt 0:14:25]} dxe5 {[%emt 0:02:50]} 12. Nf5 {[%emt 0:00:34]} Bxf5 $1 {[%emt 0:00:08]} 13. exf5 {[%emt 0:02:15]} Rc8 $146 {[%emt 0:12:43]} (13... Bb4 14. a3 Bxc3 15. Qxc3 Rc8 16. Qd3 Qe7 17. Rad1 Rfd8 18. Qb3 {0-1 (59) Vujacic,B (2261)-Damljanovic,B (2588) Skopje 2016}) 14. Qg3 {[%emt 0:06:31] [#]} (14. Kh1 $11) 14... Nd4 $1 {[%emt 0:07:59]} 15. Bd1 {[%emt 0:08:51]} ({Not} 15. Qxe5 $2 Nxe2+ 16. Nxe2 Ng4 $19) 15... Re8 {[%emt 0:11:59]} 16. Kh1 {[%emt 0:04:08]} ({Not} 16. Qxe5 $2 Bc5 17. Qg3 {[#]} Rxe3 $1 {[%mdl 512]} 18. Qxe3 Nxf5 $1 {[%mdl 512]} 19. Qxc5 Rxc5 $19) 16... Qb6 {[%emt 0:13:23]} 17. Bc1 {[%emt 0:08:06]} Qa6 {[%emt 0:10:01]} 18. Qe1 {[%emt 0:11:59] [#]} (18. Rf2 $17) 18... Bb4 $1 {[%emt 0:05:44]} 19. a3 {[%emt 0:05:18] [#]} Rxc3 $1 {[%emt 0:05:07]} 20. axb4 {[%emt 0:04:58]} Qxa1 {[%emt 0:00:10]} 21. bxc3 {[%emt 0:00:04]} Qxc1 {[%emt 0:00:33]} 22. cxd4 {[%emt 0:00:03]} exd4 {[%emt 0:00:25]} 23. Qf2 {[%emt 0:01:25] [#]} Qe3 $2 {[%emt 0:02:43]} (23... Qb2 $1 $19 {has better winning chances.} 24. h3 Qxb4) 24. Qxe3 {[%emt 0:00:46]} dxe3 {[%emt 0:02:28]} 25. Bf3 {[%emt 0:00:02]} Ne4 {[%emt 0:09:34]} 26. Re1 {[%emt 0:05:01]} g6 {[%emt 0:00:47]} 27. Kg1 {[%emt 0:04:09]} Nd2 {[%emt 0:02:49]} 28. Bxb7 {[%emt 0:00:55]} gxf5 {[%emt 0:00:09]} 29. g3 {[%emt 0:01:10]} Re7 {[%emt 0:00:35]} 30. Bd5 {[%emt 0:00:33]} Kg7 {[%emt 0:00:24]} 31. c4 {[%emt 0:01:05]} Kf6 {[%emt 0:00:26]} 32. Kg2 {[%emt 0:01:24]} f4 {[%emt 0:00:44]} 33. gxf4 {[%emt 0:00:43]} Kf5 {[%emt 0:00:54]} 34. Kg3 {[%emt 0:00:37]} f6 {[%emt 0:00:08]} 35. c5 {[%emt 0:01:56]} Rg7+ {[%emt 0:00:13]} 36. Kh3 {[%emt 0:00:01]} Kxf4 {[%emt 0:00:38]} 37. c6 {[%emt 0:00:58]} Ne4 {[%emt 0:01:53]} 38. Kh4 {[%emt 0:00:47]} Nc3 {[%emt 0:01:29]} 39. Bc4 {[%emt 0:01:28]} f5 {[%emt 0:00:37]} 40. Be6 {[%emt 0:00:00]} Ne4 {[%emt 0:01:01]} 41. Rf1+ {[%emt 0:06:10]} Nf2 {[%emt 0:09:30]} 42. Bd7 {[%emt 0:12:34]} Rg2 {[%emt 0:01:22]} 43. h3 {[%emt 0:00:58]} Rh2 {[%emt 0:00:23]} 44. Bxf5 {[%emt 0:03:16]} Kxf5 {[%emt 0:00:02]} 45. Kg3 {[%emt 0:00:16]} Rxh3+ {[%emt 0:00:07]} 46. Kg2 {[%emt 0:00:01]} Kf4 {[%emt 0:01:15]} 47. c7 {[%emt 0:03:59]} Rg3+ {[%emt 0:00:10]} 48. Kh2 {[%emt 0:00:02]} Rg8 {[%emt 0:00:15]} 49. Rg1 {[%emt 0:03:24]} Rc8 {[%emt 0:00:46]} 50. b5 {[%emt 0:02:28]} Rxc7 {[%emt 0:01:30]} 51. b6 {[%emt 0:00:02]} axb6 {[%emt 0:01:47]} 52. Rg7 {[%emt 0:00:05]} Ng4+ {[%emt 0:00:08]} 1/2-1/2

[Event "FRA-ch Youth 2017"]
[Site "Belfort"]
[Date "2017.04.19"]
[Round "5"]
[White "Rubsamen, Anais"]
[Black "Yuan, Beline"]
[Result "1-0"]
[ECO "A12"]
[WhiteElo "1610"]
[BlackElo "1845"]
[Annotator "NA"]
[PlyCount "128"]
[EventDate "2017.??.??"]
[EventCountry "FRA"]
[SourceTitle "playchess.com"]
[Source "ChessBase"]
[SourceQuality "1"]
[TimeControl "5400+30"]

{[%evp 8,112,30,32767,28,28,44,39,52,36,34,30,31,12,35,32,32,18,42,0,8,32767,32767,12,21,12,62,0,0,0,0,14,32767,32767,32767,10,32767,0,5,32767,32767,32767,3,32767,32767,32767,32767,32767,0,32767,32767,32767,32767,32767,32767,32767,32767,32767,32767,0,0,0,32767,32767,0,32767,0,0,32767,32767,32767,-94,32767,-132,0,32767,32767,32767,0,-16,-8,32767,32767,32767,32767,32767,-70,-73,-61,32767,-75,-76,-68,32767,-122,-146,-136,32767,32767,32767,-160,-164,-83,-32,-83,-83,-6]} 1. d4 {[%emt 0:00:00]} d5 {[%emt 0:00:25]} 2. c4 {[%emt 0:06:15]} dxc4 {[%emt 0:00:25]} 3. Nf3 {[%emt 0:00:33]} Nf6 {[%emt 0:00:15]} 4. e3 {[%emt 0:00:10]} Bg4 {[%emt 0:00:24]} 5. Bxc4 {[%emt 0:00:28]} e6 {[%emt 0:00:13]} 6. Nc3 {[%emt 0:00:48]} Nc6 {[%emt 0:04:17]} 7. h3 {[%emt 0:07:36]} Bh5 {[%emt 0:00:15]} 8. Be2 {[%emt 0:07:35]} Bd6 {[%emt 0:07:48]} 9. O-O {[%emt 0:03:13]} O-O {[%emt 0:03:28]} 10. b3 {[%emt 0:24:53]} a6 {[%emt 0:06:02]} 11. Bb2 {[%emt 0:00:40]} Qe7 {[%emt 0:05:36]} 12. Rc1 {[%emt 0:04:18]} Rad8 {[%emt 0:01:12] LiveBook: 5 Games} 13. Ne5 {[%emt 0:09:59] D22: Queen's Gambit Accepted: 3 Nf3 a6 4 e3} Nxe5 {[%emt 0:11:08]} 14. Bxh5 {[%emt 0:00:39]} Ned7 $146 {[%emt 0:11:11]} (14... Ng6 15. Bxg6 hxg6 16. Qf3 c6 17. Rfd1 e5 18. dxe5 Bxe5 19. Rxd8 Rxd8 20. Rd1 b5 {½-½ (62) Giri,A (2785)-Carlsen,M (2855) Bilbao 2016}) 15. Bf3 {[%emt 0:01:54]} c6 {[%emt 0:01:08]} 16. Qc2 {[%emt 0:02:36]} e5 {[%emt 0:04:04]} 17. Ne4 {[%emt 0:03:10]} Nxe4 {[%emt 0:06:09]} 18. Bxe4 {[%emt 0:00:20]} Nf6 {[%emt 0:00:19]} 19. dxe5 {[%emt 0:00:08]} Bxe5 {[%emt 0:00:23]} 20. Bxe5 {[%emt 0:00:05]} Qxe5 {[%emt 0:00:09]} 21. Bf3 {[%emt 0:00:08]} Rd6 {[%emt 0:02:33]} 22. Rfd1 {[%emt 0:00:18]} Rfd8 {[%emt 0:00:19]} 23. Rxd6 {[%emt 0:00:05]} Rxd6 {[%emt 0:00:14]} 24. b4 {[%emt 0:02:00]} h6 {[%emt 0:08:49]} 25. a4 {[%emt 0:00:50]} Ne8 {[%emt 0:10:42]} 26. Qa2 {[%emt 0:03:33]} Nc7 {[%emt 0:01:58]} 27. Rc5 {[%emt 0:01:40]} Qe6 {[%emt 0:01:02]} 28. Qc2 {[%emt 0:00:51]} Qd7 {[%emt 0:00:35]} 29. Bg4 {[%emt 0:01:28]} Qd8 {[%emt 0:01:22]} 30. Rc4 {[%emt 0:05:58]} Rd2 {[%emt 0:02:34]} 31. Qf5 {[%emt 0:00:47]} Ne8 {[%emt 0:03:59]} 32. Rc1 {[%emt 0:02:27]} Rd5 {[%emt 0:01:45]} 33. Qf4 {[%emt 0:01:31]} Qd6 {[%emt 0:00:28]} 34. Qc4 {[%emt 0:00:23]} Nc7 {[%emt 0:00:57]} 35. Bf3 {[%emt 0:01:02]} Rd2 {[%emt 0:00:20]} 36. Qc3 {[%emt 0:03:03]} g6 {[%emt 0:02:27]} 37. Rb1 {[%emt 0:03:07]} h5 {[%emt 0:00:43]} 38. Qc5 {[%emt 0:00:48]} Ne6 {[%emt 0:02:03]} 39. Qa5 {[%emt 0:01:20]} (39. Qxd6 $11 {remains equal.} Rxd6 40. g4) 39... Kh7 {[%emt 0:01:35]} 40. h4 {[%emt 0:01:51] [#]} (40. b5 $11) 40... Qc7 {[%emt 0:00:19]} (40... Qd3 $1 $17 {[%cal Rd3b1]} 41. Rf1 Rb2) 41. Qxc7 {[%emt 0:00:43]} Nxc7 {[%emt 0:00:01]} 42. Kf1 {[%emt 0:00:41]} Kg7 {[%emt 0:00:54]} 43. g4 {[%emt 0:00:38]} hxg4 {[%emt 0:00:34]} 44. Bxg4 {[%emt 0:00:03]} f5 {[%emt 0:00:37]} 45. Bf3 {[%emt 0:00:04]} Kf6 {[%emt 0:00:05]} 46. Be2 {[%emt 0:01:05]} Nd5 {[%emt 0:00:45]} 47. Rb3 {[%emt 0:00:36]} Ra2 {[%emt 0:00:33]} 48. b5 {[%emt 0:00:25]} Rxa4 {[%emt 0:00:13]} 49. bxc6 {[%emt 0:00:18]} bxc6 {[%emt 0:00:09]} 50. h5 {[%emt 0:00:15]} Ra1+ {[%emt 0:00:15]} 51. Kg2 {[%emt 0:00:07] [#]} gxh5 $1 {[%emt 0:00:37]} 52. Bxh5 {[%emt 0:00:10]} a5 {[%emt 0:01:11]} 53. Bf3 {[%emt 0:00:31]} a4 {[%emt 0:00:33]} 54. Rb8 {[%emt 0:00:13]} a3 {[%emt 0:00:43]} (54... Ke6 $19 {and Black stays clearly on top. White must now prevent ...a3.} 55. Rd8 Nc7) 55. Bxd5 $1 {[%emt 0:01:03]} cxd5 {[%emt 0:00:04]} 56. Ra8 {[%emt 0:00:16]} Ke5 $11 {[%emt 0:00:57]} ({Don't take} 56... a2 57. Ra6+ Ke7 58. Kf3 $17) 57. Kf3 {[%emt 0:00:09]} Kd6 {[%emt 0:00:39]} 58. Ra5 {[%emt 0:02:08]} Ra2 {[%emt 0:00:10]} 59. Kg3 {[%emt 0:00:36]} Ke6 {[%emt 0:00:44]} 60. Ra6+ {[%emt 0:00:13]} Ke5 {[%emt 0:00:22]} 61. Kf3 {[%emt 0:00:12]} Ra1 {[%emt 0:00:35]} 62. Ra5 {[%emt 0:00:29]} Ra2 {[%emt 0:00:29]} 63. Ra6 {[%emt 0:00:03]} Ra1 {[%emt 0:00:26]} 64. Ra5 {[%emt 0:00:03]} Ra2 {[%emt 0:00:33] Ke4+} 1-0

[Event "FRA-ch Youth 2017"]
[Site "Belfort"]
[Date "2017.04.19"]
[Round "5"]
[White "Favarel-Lubeigt, Helina"]
[Black "Croisille, Shanti"]
[Result "0-1"]
[ECO "E71"]
[WhiteElo "1537"]
[BlackElo "1539"]
[Annotator "NA"]
[PlyCount "100"]
[EventDate "2017.??.??"]
[EventCountry "FRA"]
[SourceTitle "playchess.com"]
[Source "ChessBase"]
[SourceQuality "1"]
[TimeControl "40/5400+30:1800+30"]

1. e4 {[%emt 0:00:00]} c5 {[%emt 0:00:04]} 2. Nf3 {[%emt 0:00:00]} Nc6 {[%emt 0:00:03]} 3. d4 {[%emt 0:00:00]} cxd4 {[%emt 0:00:06]} 4. Nxd4 {[%emt 0:00:00]} e5 {[%emt 0:00:19]} 5. Nb5 {[%emt 0:00:23]} d6 {[%emt 0:00:04]} 6. c4 {[%emt 0:01:34]} Be7 {[%emt 0:00:50]} 7. N1c3 {[%emt 0:00:38]} a6 {[%emt 0:00:27]} 8. Na3 {[%emt 0:00:09]} Be6 {[%emt 0:01:28]} 9. Be2 {[%emt 0:01:13]} Nf6 {[%emt 0:00:44]} 10. O-O {[%emt 0:01:22]} O-O {[%emt 0:00:20]} 11. Be3 {[%emt 0:08:57]} Rc8 {[%emt 0:01:42]} 12. Qd2 {[%emt 0:02:49]} Na5 {[%emt 0:14:01] B32: Sicilian: Löwenthal and Kalashnikov Variations} (12... Nd7 13. Rac1 Nc5 14. f3 Nd4 15. Bxd4 exd4 16. Qxd4 Qb6 17. Rc2 Bf6 18. Qe3 Qb4 19. Qd2 Na4 20. Nd5 {½-½ (37) Anand,V (2779)-Caruana,F (2823) Saint Louis 2016}) 13. Nd5 {[%emt 0:08:33]} Bxd5 {[%emt 0:00:39]} 14. exd5 {[%emt 0:01:52]} b6 {[%emt 0:00:24]} 15. f4 $146 {[%emt 0:15:31]} (15. f3 Nb7 16. Nc2 a5 17. Na3 Nc5 18. Nb5 Ra8 19. b3 Nfd7 20. Bd3 Nxd3 21. Qxd3 {1-0 (48) Sleich,J (2225)-Kovalevskaya,E (2350) Decin 1997}) 15... Ne4 {[%emt 0:22:18]} 16. Qd3 {[%emt 0:13:34]} f5 {[%emt 0:10:10]} 17. b4 {[%emt 0:17:11]} Nb7 {[%emt 0:01:03]} 18. fxe5 {[%emt 0:09:05]} (18. Bf3 $11) 18... dxe5 {[%emt 0:00:55]} 19. Nc2 {[%emt 0:03:36]} (19. Rxf5 $11 Rxf5 20. Qxe4) 19... Ned6 {[%emt 0:01:38]} 20. Qb3 {[%emt 0:01:26]} f4 {[%emt 0:04:50]} 21. Bc1 {[%emt 0:01:03]} Qc7 {[%emt 0:07:39]} 22. Bb2 {[%emt 0:06:20]} Nxc4 {[%emt 0:14:14]} 23. Na3 {[%emt 0:02:53]} b5 {[%emt 0:03:57]} 24. Rac1 {[%emt 0:00:27]} Qb6+ {[%emt 0:05:28]} 25. Kh1 {[%emt 0:00:02]} Nbd6 {[%emt 0:00:36]} 26. Nxc4 {[%emt 0:00:23]} Nxc4 {[%emt 0:05:22]} 27. Qh3 {[%emt 0:00:52]} Qf6 {[%emt 0:02:32]} 28. Bd3 {[%emt 0:02:12]} g6 {[%emt 0:00:55]} 29. Rfe1 {[%emt 0:01:01]} Bd6 {[%emt 0:00:51]} 30. Be4 {[%emt 0:01:16]} Rc7 {[%emt 0:00:42]} 31. Bc3 {[%emt 0:00:26]} Qe7 {[%emt 0:00:38]} 32. Qd3 {[%emt 0:00:16]} Qg5 {[%emt 0:00:18]} 33. Qh3 {[%emt 0:00:36]} Re7 {[%emt 0:00:34]} 34. Rc2 {[%emt 0:00:39]} Ne3 {[%emt 0:00:25]} 35. Rce2 {[%emt 0:00:18]} Ng4 {[%emt 0:00:21]} 36. Bf3 {[%emt 0:00:43]} h5 {[%emt 0:00:09]} 37. Bxg4 {[%emt 0:00:16]} hxg4 {[%emt 0:00:07]} 38. Qd3 {[%emt 0:00:03]} g3 {[%emt 0:01:33]} 39. h3 {[%emt 0:01:09]} Qf5 {[%emt 0:00:22]} 40. Qf3 {[%emt 0:00:00]} Rc8 {[%emt 0:00:40]} 41. Bb2 {[%emt 0:15:01]} Rc4 {[%emt 0:03:50]} 42. Re4 {[%emt 0:05:02]} Rec7 {[%emt 0:06:07]} 43. R4e2 {[%emt 0:06:14]} Rc2 {[%emt 0:04:11]} 44. Rxc2 {[%emt 0:02:59]} Rxc2 {[%emt 0:00:14]} 45. Ba1 {[%emt 0:03:42]} e4 {[%emt 0:03:17]} 46. Qd1 {[%emt 0:00:16]} Rxg2 {[%emt 0:00:57]} 47. Kxg2 {[%emt 0:00:05]} f3+ {[%emt 0:00:05]} 48. Kg1 {[%emt 0:00:23]} f2+ {[%emt 0:01:31]} 49. Kg2 {[%emt 0:00:18]} Qf3+ {[%emt 0:00:23]} 50. Qxf3 {[%emt 0:00:57]} fxe1=N+ {[%emt 0:01:00]} 0-1

[Event "FRA-ch Youth 2017"]
[Site "Belfort"]
[Date "2017.04.20"]
[Round "6"]
[White "Travadon, Loic"]
[Black "Bournel, Antoine"]
[Result "1-0"]
[ECO "B27"]
[WhiteElo "2348"]
[BlackElo "1933"]
[Annotator "NA"]
[PlyCount "104"]
[EventDate "2017.??.??"]
[EventCountry "FRA"]
[SourceTitle "playchess.com"]
[Source "ChessBase"]
[SourceQuality "1"]
[TimeControl "5400+30"]

1. e4 {[%emt 0:00:00]} c5 {[%emt 0:00:06]} 2. Nf3 {[%emt 0:00:00]} g6 {[%emt 0:02:43]} 3. c3 {[%emt 0:00:00]} Bg7 {[%emt 0:00:08]} 4. d4 {[%emt 0:00:00]} cxd4 {[%emt 0:00:06]} 5. cxd4 {[%emt 0:00:00]} d5 {[%emt 0:00:06]} 6. e5 {[%emt 0:00:00]} Bg4 {[%emt 0:00:12]} 7. Nbd2 {[%emt 0:00:02]} Nc6 {[%emt 0:02:00] B27: Sicilian: 2 Nf3, unusual Black 2nd moves} 8. Bb5 {[%emt 0:00:07]} e6 {[%emt 0:09:21]} 9. Bxc6+ {[%emt 0:05:13]} bxc6 {[%emt 0:00:11]} 10. O-O {[%emt 0:00:14]} Ne7 {[%emt 0:03:33]} 11. Nb3 {[%emt 0:10:17]} Nf5 $146 {[%emt 0:05:51]} (11... O-O 12. h3 Bxf3 13. Qxf3 f6 14. exf6 Bxf6 15. Qc3 Qd6 16. Qc5 Nf5 17. Qxd6 Nxd6 {½-½ (51) Kovchan,A (2576)-Ahmad,A (2170) Dubai 2015}) 12. h3 {[%emt 0:02:14]} Bxf3 {[%emt 0:02:01]} 13. Qxf3 {[%emt 0:00:12]} c5 {[%emt 0:18:44]} 14. Nxc5 {[%emt 0:18:55]} Nxd4 {[%emt 0:03:10]} 15. Qd1 {[%emt 0:00:58]} Nc6 {[%emt 0:06:24]} 16. Qa4 {[%emt 0:03:16]} Qc7 {[%emt 0:08:06]} 17. Be3 {[%emt 0:04:20]} O-O {[%emt 0:04:31]} 18. f4 {[%emt 0:00:45]} Rfd8 {[%emt 0:04:18]} 19. Rac1 {[%emt 0:01:02]} Rac8 {[%emt 0:02:56]} 20. Rfd1 {[%emt 0:01:40]} Qa5 {[%emt 0:02:17]} 21. Qb3 {[%emt 0:08:43]} Rb8 {[%emt 0:02:26]} 22. Nb7 {[%emt 0:00:27]} Qa6 {[%emt 0:00:47]} 23. Rxc6 $1 {[%emt 0:00:25]} Qxc6 {[%emt 0:02:13]} 24. Nxd8 {[%emt 0:05:34]} Qc7 {[%emt 0:03:22]} 25. Nxe6 $1 {[%emt 0:01:04]} fxe6 {[%emt 0:00:05]} 26. Qa4 {[%emt 0:00:13]} Qb7 {[%emt 0:04:54]} 27. b3 {[%emt 0:01:50]} a6 {[%emt 0:02:03]} 28. Rc1 {[%emt 0:00:49]} Rc8 {[%emt 0:00:14]} 29. Kh2 {[%emt 0:00:53]} g5 {[%emt 0:00:37]} 30. Qa5 {[%emt 0:04:39]} gxf4 {[%emt 0:02:19]} 31. Qb6 {[%emt 0:02:28]} Rxc1 {[%emt 0:02:17]} 32. Qxb7 {[%emt 0:00:17]} fxe3 {[%emt 0:00:08]} 33. Qa8+ {[%emt 0:00:19]} Kf7 {[%emt 0:00:13]} 34. Qa7+ {[%emt 0:00:07]} Ke8 {[%emt 0:01:44]} 35. Qxe3 {[%emt 0:04:51]} Rf1 {[%emt 0:02:47]} 36. g4 {[%emt 0:00:24]} Rf7 {[%emt 0:02:23]} 37. Kg2 {[%emt 0:00:35]} Rd7 {[%emt 0:00:40]} 38. Qd4 {[%emt 0:01:38]} Kf7 {[%emt 0:01:13]} 39. Kf3 {[%emt 0:00:36]} Rc7 {[%emt 0:00:24]} 40. Qf4+ {[%emt 0:01:45]} Kg6 {[%emt 0:01:22]} 41. h4 {[%emt 0:00:17]} h6 {[%emt 0:00:25]} 42. h5+ {[%emt 0:00:59]} Kh7 {[%emt 0:00:05]} 43. g5 {[%emt 0:01:05]} hxg5 {[%emt 0:00:12]} 44. Qxg5 {[%emt 0:00:08]} Rf7+ {[%emt 0:00:45]} 45. Kg4 {[%emt 0:00:26]} Rf5 {[%emt 0:01:02]} 46. Qg6+ {[%emt 0:00:04]} Kh8 {[%emt 0:00:12]} 47. Qe8+ {[%emt 0:00:47]} Kh7 {[%emt 0:00:11]} 48. Qxe6 {[%emt 0:00:36] Rxe} Rxe5 {[%emt 0:00:14]} 49. Qg6+ {[%emt 0:00:41]} Kh8 {[%emt 0:00:05]} 50. Qxa6 {[%emt 0:01:55]} d4 {[%emt 0:00:21]} 51. h6 {[%emt 0:00:24]} Re4+ {[%emt 0:00:39]} 52. Kf5 {[%emt 0:00:14]} Re5+ {[%emt 0:00:05] Ke4} 1-0

[Event "FRA-ch Youth 2017"]
[Site "Belfort"]
[Date "2017.04.20"]
[Round "6"]
[White "Zachary, Matheo"]
[Black "Degraeve, Remy"]
[Result "1/2-1/2"]
[ECO "B07"]
[WhiteElo "2267"]
[BlackElo "2126"]
[Annotator "NA"]
[PlyCount "132"]
[EventDate "2017.??.??"]
[EventCountry "FRA"]
[SourceTitle "playchess.com"]
[Source "ChessBase"]
[SourceQuality "1"]
[TimeControl "5400+30"]

1. e4 {[%emt 0:00:00]} d6 {[%emt 0:00:02]} 2. d4 {[%emt 0:00:46]} Nf6 {[%emt 0:00:03]} 3. Nc3 {[%emt 0:01:04]} g6 {[%emt 0:00:04]} 4. Bg5 {[%emt 0:02:13]} Bg7 {[%emt 0:00:26]} 5. e5 {[%emt 0:00:05]} Nfd7 {[%emt 0:04:04]} 6. exd6 {[%emt 0:05:23]} cxd6 {[%emt 0:01:14]} 7. Nf3 {[%emt 0:00:33] LiveBook: 7 Games} h6 {[%emt 0:01:41] B07: Pirc Defence: Miscellaneous Systems} (7... Nc6 8. Qd2 Qa5 9. Be2 Nb6 10. Bh6 O-O 11. Bxg7 Kxg7 12. d5 Ne5 13. Qd4 Nbd7 14. O-O-O Kg8 15. Ng5 {1-0 (33) Borgo,G (2414)-David,A (2587) Milan 2010}) 8. Be3 {[%emt 0:01:44]} Nc6 {[%emt 0:01:06]} 9. h4 $146 {[%emt 0:09:14]} (9. Qd2 Nf6 10. d5 Ne5 11. Nxe5 dxe5 12. h3 Bd7 13. O-O-O Qa5 14. Kb1 O-O 15. Bxh6 Bxh6 16. Qxh6 {0-1 (46) Honfi,K-Szabo,L Budapest 1962}) 9... a6 {[%emt 0:02:28]} 10. a4 {[%emt 0:06:04]} Nf6 {[%emt 0:04:29]} 11. d5 {[%emt 0:05:03]} Ne5 {[%emt 0:04:42]} 12. Nxe5 {[%emt 0:05:24]} dxe5 {[%emt 0:00:01]} 13. Be2 {[%emt 0:02:03]} b6 {[%emt 0:04:20]} 14. O-O {[%emt 0:10:50]} Bb7 {[%emt 0:00:51]} 15. Bf3 {[%emt 0:07:50]} O-O {[%emt 0:18:17]} 16. Qd2 {[%emt 0:01:38]} Kh7 {[%emt 0:00:25]} 17. Rfd1 {[%emt 0:01:25]} Ne8 {[%emt 0:01:48]} 18. Ra3 {[%emt 0:04:15]} Nd6 {[%emt 0:00:24]} 19. Be2 {[%emt 0:01:30]} Nf5 {[%emt 0:00:32]} 20. Bf1 {[%emt 0:03:38]} Rc8 {[%emt 0:09:31]} 21. Ne2 {[%emt 0:06:14]} (21. h5 $11) 21... Nxe3 {[%emt 0:03:41]} 22. Rxe3 {[%emt 0:01:01]} Rc5 23. Nc3 {[%emt 0:03:35]} f5 {[%emt 0:01:40]} 24. d6 {[%emt 0:01:24]} e6 {[%emt 0:02:42]} 25. d7 {[%emt 0:04:17]} e4 {[%emt 0:01:56]} 26. Qd6 {[%emt 0:04:01]} Rc6 {[%emt 0:00:24]} 27. Qd2 {[%emt 0:01:36]} Be5 {[%emt 0:00:46]} 28. g3 {[%emt 0:01:55]} Rd6 {[%emt 0:01:10]} 29. Qc1 {[%emt 0:00:32]} Qxd7 {[%emt 0:00:17]} 30. Ree1 {[%emt 0:00:29]} Bxc3 {[%emt 0:10:49]} 31. bxc3 {[%emt 0:00:29]} Rd8 {[%emt 0:00:17]} 32. Rxd6 {[%emt 0:00:28]} Qxd6 {[%emt 0:00:01]} 33. Qe3 {[%emt 0:00:13]} Qc6 {[%emt 0:12:08]} 34. Rb1 {[%emt 0:00:51]} Rd6 {[%emt 0:00:05]} 35. a5 {[%emt 0:03:16]} (35. c4 $17) 35... b5 $2 {[%emt 0:09:12]} ({Better is} 35... bxa5 $19 {And now ...Bc8 would win.} 36. Qa7 Rd7) 36. c4 {[%emt 0:01:14]} bxc4 {[%emt 0:03:22]} 37. Rb6 {[%emt 0:00:31]} Qc7 {[%emt 0:00:31]} 38. Bxc4 {[%emt 0:02:14]} Rxb6 {[%emt 0:00:41]} 39. Qxb6 {[%emt 0:00:09]} Qxb6 {[%emt 0:00:09]} 40. axb6 {[%emt 0:00:07]} Kg7 {[%emt 0:00:04]} 41. Bxe6 {[%emt 0:00:46]} Kf6 {[%emt 0:00:01]} 42. Bb3 {[%emt 0:00:45]} Ke5 {[%emt 0:00:08]} 43. Kf1 {[%emt 0:00:38]} Kd4 {[%emt 0:00:49]} 44. Ke2 {[%emt 0:00:24]} a5 {[%emt 0:00:22]} 45. Kd2 {[%emt 0:00:33]} Kc5 {[%emt 0:00:20]} 46. Bf7 {[%emt 0:00:13]} g5 {[%emt 0:00:14]} 47. hxg5 {[%emt 0:01:22]} hxg5 {[%emt 0:00:01]} 48. Be6 {[%emt 0:01:10]} f4 {[%emt 0:00:05]} ({Stronger than} 48... Kxb6 49. Bxf5 Kc5 50. Kc3 $11) 49. gxf4 {[%emt 0:00:21]} gxf4 {[%emt 0:00:01]} 50. Kc3 {[%emt 0:00:44]} Kxb6 {[%emt 0:01:49]} 51. Kc4 {[%emt 0:00:38]} a4 {[%emt 0:01:34]} 52. Kb4 {[%emt 0:00:45]} Bc6 {[%emt 0:00:04]} 53. Bc4 $19 {[%emt 0:00:28]} (53. c4) 53... Kc7 {[%emt 0:01:04]} 54. Kc5 {[%emt 0:00:11]} Be8 {[%emt 0:02:39]} 55. c3 {[%emt 0:01:04]} Kd7 {[%emt 0:01:41]} 56. Kd4 {[%emt 0:01:20]} Ke7 {[%emt 0:00:00]} 57. Kxe4 {[%emt 0:00:53]} Bf7 {[%emt 0:00:01]} 58. Bxf7 {[%emt 0:00:07]} Kxf7 {[%emt 0:00:09]} 59. Kd3 {[%emt 0:00:03]} Ke6 {[%emt 0:00:52]} 60. Kc4 {[%emt 0:00:25]} f3 {[%emt 0:00:47]} 61. Kb4 {[%emt 0:00:56]} Kd5 {[%emt 0:00:15]} 62. c4+ {[%emt 0:00:04]} Kd4 {[%emt 0:00:06]} 63. c5 {[%emt 0:00:06]} Kd5 {[%emt 0:00:20]} 64. Kxa4 {[%emt 0:00:55]} Kxc5 {[%emt 0:00:02]} 65. Kb3 {[%emt 0:00:06]} Kd4 {[%emt 0:00:09]} 66. Kc2 {[%emt 0:00:04]} Ke5 1/2-1/2